bitfinex/quotes_ETHUSD_20241204
["timestamp","ask_amount","ask_price","bid_price","bid_amount"]
[1733275356605,1.6654,3698.6,3697.5,2.70451]
[1733275357272,1.6654,3698.6,3696.7,3.51769136]
[1733275357598,1.514,3698.6,3698.2,2.70398]
[1733275357754,1.514,3698.6,3698.3,2.70393]
[1733275357958,1.514,3698.6,3697.4,0.02703639]
[1733275357959,1.514,3698.6,3697.8,2.70426]
[1733275358190,1.514,3698.6,3697.9,2.70422]
[1733275358792,1.514,3698.6,3698.0,0.02703877]
[1733275358990,1.514,3698.6,3698.0,2.70411]
[1733275359203,1.514,3698.6,3698.0,2.974501]
[1733275359354,1.514,3698.6,3697.7,2.70432]
[1733275360003,1.514,3698.6,3697.8,0.02703725]
[1733275360174,1.514,3698.6,3697.5,0.77351978]
[1733275360175,1.514,3698.6,3698.4,2.70386]
[1733275360375,1.514,3698.6,3697.5,0.77351978]
[1733275360577,1.514,3698.6,3698.1,2.70405]
[1733275360761,1.514,3698.6,3697.5,0.77351978]
[1733275360762,1.514,3698.6,3697.7,0.02703714]
[1733275361115,1.5169,3699.8,3698.3,1.4858]
[1733275361401,1.5169,3699.8,3699.5,2.70302]
[1733275361635,1.5169,3699.8,3699.2,2.70325]
[1733275361759,1.5169,3699.8,3697.9,0.2704]
[1733275361961,1.5169,3699.6,3698.4,2.70385]
[1733275362391,2.85461,3699.7,3698.0,0.52738914]
[1733275362392,1.5169,3699.4,3698.2,2.70401]
[1733275362687,2.70314,3699.4,3698.0,0.52738914]
[1733275362907,1.77529,3699.3,3698.2,2.70401]
[1733275363060,1.6236,3699.3,3698.2,2.70401]
[1733275363265,1.6236,3699.3,3698.0,3.23153914]
[1733275363466,1.6236,3699.3,3698.0,0.52738914]
[1733275363804,1.6236,3699.2,3698.0,2.70415]
[1733275364204,1.5328,3698.8,3697.9,2.70422]
[1733275364361,1.5328,3698.8,3698.5,2.70378]
[1733275364568,1.5328,3698.8,3698.6,0.270378]
[1733275364879,1.5328,3698.8,3698.6,2.70368]
[1733275365202,1.6508,3699.6,3698.4,0.02703512]
[1733275365402,1.6508,3699.6,3699.3,2.70318]
[1733275365788,1.6508,3699.6,3699.4,2.70312]
[1733275366093,6.33284546,3701.2,3698.9,2.7035]
[1733275366094,1.559,3699.8,3698.9,2.7035]
[1733275366272,1.559,3699.8,3698.4,0.540791]
[1733275366273,1.559,3699.8,3699.5,2.70306]
[1733275367610,1.559,3699.8,3699.6,2.70296]
[1733275367955,1.559,3699.8,3699.0,2.70342]
[1733275367956,1.559,3699.8,3696.1,0.1]
[1733275368148,1.5983,3699.4,3696.7,3.51769136]
[1733275368318,4.0,3699.3,3698.3,2.7039]
[1733275368643,4.0,3699.3,3698.3,2.70389]
[1733275368846,1.5983,3699.2,3698.3,2.70389]
[1733275369063,0.55983,3699.1,3697.8,0.02703707]
[1733275369207,1.5983,3699.2,3698.0,0.02224201]
[1733275369402,1.5983,3699.2,3698.1,2.70409]
[1733275369640,1.5983,3699.2,3698.0,0.02224201]
[1733275369848,1.5983,3699.2,3698.7,2.70364]
[1733275370218,1.5983,3699.2,3698.1,2.70404]
[1733275370417,1.5983,3699.2,3698.8,2.70356]
[1733275371210,1.5983,3699.2,3698.9,2.70348]
[1733275371942,1.5983,3699.2,3699.0,2.70341]
[1733275372650,1.5983,3699.2,3698.3,2.70394]
[1733275372858,1.5983,3699.2,3698.4,2.70387]
[1733275373154,1.5983,3699.2,3698.7,2.70363]
[1733275373359,1.75813,3699.2,3698.0,0.02224201]
[1733275373512,1.5625,3699.0,3698.0,0.02224201]
[1733275373936,1.5625,3699.0,3698.8,2.70356]
[1733275374797,1.593,3699.7,3698.6,0.02703281]
[1733275374963,1.593,3699.7,3699.5,2.70305]
[1733275375601,1.6196,3700.3,3699.5,2.70305]
[1733275375798,1.6196,3700.3,3699.9,2.70275]
[1733275376106,1.6196,3700.3,3699.2,2.70325]
[1733275376405,1.6196,3700.3,3699.2,0.270325]
[1733275376714,1.12697665,3700.5,3700.1,2.70259]
[1733275376907,1.5408,3700.7,3700.5,2.70233]
[1733275377317,1.5408,3700.7,3699.9,2.70273]
[1733275377613,1.5408,3700.7,3700.4,2.70238]
[1733275378121,1.5408,3700.7,3699.5,1.4858]
[1733275378411,1.5408,3700.7,3700.2,2.70253]
[1733275378623,0.93328182,3700.6,3699.5,2.70305]
[1733275378773,1.12697665,3700.4,3699.5,2.70305]
[1733275378977,1.5606,3700.2,3698.1,1.4858]
[1733275379181,1.5606,3699.6,3698.4,2.70383]
[1733275379412,1.12697665,3699.7,3698.4,2.70383]
[1733275379413,2.68757665,3699.4,3698.4,2.70383]
[1733275379629,2.73159414,3699.3,3698.0,0.02224201]
[1733275379780,3.46247863,3699.2,3698.0,0.02224201]
[1733275379978,2.06117744,3699.1,3698.3,2.70393]
[1733275380176,0.93420079,3699.0,3698.3,2.70393]
[1733275380416,1.86544769,3699.1,3698.1,2.70409]
[1733275380629,0.93475639,3699.0,3698.3,2.70388]
[1733275381041,0.93475639,3699.0,3698.0,0.02224201]
[1733275381042,0.93475639,3698.9,3698.4,2.70384]
[1733275381181,1.5395,3698.8,3698.0,0.02224201]
[1733275381379,3.46399249,3698.7,3698.0,0.02224201]
[1733275381600,0.9348782,3698.6,3698.1,2.70408]
[1733275382676,2.06195972,3698.6,3698.0,0.02224201]
[1733275382877,0.93494631,3698.5,3698.0,0.02224201]
[1733275383177,0.7283343,3698.6,3698.1,2.70405]
[1733275383424,0.9349877,3698.5,3698.0,0.02224201]
[1733275383596,0.9349877,3698.5,3698.3,2.70392]
[1733275383929,1.12697665,3698.7,3698.3,2.70392]
[1733275384111,2.66647665,3698.8,3698.3,0.27309585]
[1733275384417,1.5395,3698.8,3698.6,2.70367]
[1733275384828,1.5395,3698.8,3697.3,2.70467]
[1733275384985,1.5395,3698.8,3696.8,0.35176914]
[1733275385182,1.12697665,3698.6,3697.7,2.70437]
[1733275385429,2.06179776,3698.5,3697.7,2.70437]
[1733275385632,2.06179776,3698.5,3697.4,2.70454]
[1733275385633,3.72469776,3698.4,3697.4,2.70454]
[1733275385831,3.46391,3698.3,3697.4,2.70454]
[1733275386040,1.6629,3698.1,3696.4,1.4858]
[1733275386202,1.12697665,3697.9,3696.8,2.70501]
[1733275386386,1.12697665,3697.9,3695.7,3.51694018]
[1733275386387,1.5884,3697.7,3695.7,3.51694018]
[1733275386588,1.5884,3697.5,3696.4,2.70532]
[1733275386885,1.5563,3697.3,3695.4,3.44056991]
[1733275387214,2.72360754,3697.2,3696.2,2.70546]
[1733275387391,0.66180978,3697.2,3696.2,2.70546]
[1733275387586,0.93441963,3697.1,3696.2,2.70546]
[1733275388123,1.588,3697.0,3695.6,2.70592]
[1733275388418,1.588,3697.0,3695.6,2.73297286]
[1733275388623,1.588,3697.0,3695.5,0.69575101]
[1733275388624,1.588,3697.0,3695.7,0.68692938]
[1733275388828,1.588,3697.0,3695.4,1.95476991]
[1733275388829,0.93402345,3696.9,3695.4,1.95476991]
[1733275389010,0.93401823,3696.9,3695.4,1.95476991]
[1733275389252,1.12697665,3696.9,3695.9,2.70569]
[1733275389399,1.6472,3696.8,3695.6,2.70589]
[1733275389727,1.6472,3696.6,3695.4,4.66078991]
[1733275389932,1.6472,3696.5,3695.4,1.95476991]
[1733275390433,1.6472,3696.5,3695.4,4.66081991]
[1733275390802,1.6472,3696.5,3695.5,2.70597]
[1733275391032,1.6472,3696.5,3695.4,1.95476991]
[1733275391033,1.6472,3696.5,3695.7,2.70579]
[1733275392010,2.16269559,3696.5,3695.4,1.95476991]
[1733275392216,2.16269559,3696.5,3695.8,2.7057]
[1733275392493,1.6472,3696.5,3695.8,2.7057]
[1733275392799,1.6472,3696.5,3695.4,1.95476991]
[1733275393050,1.6472,3696.5,3696.2,2.70541]
[1733275393269,1.6472,3696.5,3696.0,2.70559]
[1733275393427,1.6472,3696.5,3695.7,2.70579]
[1733275393627,1.6472,3696.5,3695.4,1.95476991]
[1733275395369,1.6472,3696.5,3695.8,2.70576]
[1733275395576,1.6472,3696.5,3696.2,2.70546]
[1733275395744,1.6472,3696.5,3695.4,1.95476991]
[1733275395943,1.6472,3696.5,3696.0,2.70557]
[1733275396127,1.6472,3696.5,3695.7,2.70582]
[1733275396531,1.6472,3696.5,3695.9,2.70567]
[1733275396776,1.6472,3696.5,3695.6,2.70591]
[1733275396970,1.6472,3696.5,3695.8,2.70573]
[1733275397180,1.6472,3696.5,3695.5,2.70599]
[1733275397361,1.6472,3696.5,3695.4,1.95476991]
[1733275397362,1.6472,3696.5,3695.6,0.02705913]
[1733275397534,1.6472,3696.5,3695.6,2.70592]
[1733275397876,1.6472,3696.5,3696.3,2.7054]
[1733275398074,1.6472,3696.5,3695.4,1.95476991]
[1733275398259,1.6472,3696.5,3696.3,2.7054]
[1733275399133,1.6472,3696.5,3695.4,1.95476991]
[1733275399337,1.6472,3696.5,3695.4,2.1502469]
[1733275399559,1.6472,3696.5,3695.9,2.70567]
[1733275399776,1.6472,3696.5,3695.6,2.70585]
[1733275400272,1.6472,3696.5,3695.4,4.66082991]
[1733275400474,1.6472,3696.5,3695.4,1.95476991]
[1733275400779,0.16472,3696.4,3695.4,1.95476991]
[1733275400959,1.5471,3696.3,3695.4,1.95476991]
[1733275402274,1.522,3696.2,3695.4,1.95476991]
[1733275402480,2.70569,3696.0,3695.4,1.95476991]
[1733275402683,4.22778,3695.8,3695.4,1.95476991]
[1733275402835,3.03692053,3696.2,3695.4,1.95476991]
[1733275402836,1.522,3695.7,3695.4,1.95476991]
[1733275403637,2.70593,3695.6,3695.4,0.28816991]
[1733275403837,1.522,3695.5,3695.4,0.28816991]
[1733275404044,1.522,3695.5,3694.8,1.8506025]
[1733275404360,2.85813,3695.6,3694.8,1.8506025]
[1733275404361,1.5903,3695.4,3694.8,1.8506025]
[1733275404569,4.29667,3695.0,3694.8,1.8506025]
[1733275404770,4.5903,3694.9,3694.8,1.8506025]
[1733275405477,1.5938,3694.7,3694.1,1.90401229]
[1733275405681,1.5938,3694.4,3694.1,1.90401229]
[1733275405850,1.5562,3694.2,3694.1,1.90401229]
[1733275407380,1.5562,3694.2,3694.1,1.82785642]
[1733275407381,7.26314,3694.2,3694.1,1.82785642]
[1733275407945,1.5562,3694.2,3694.1,1.82785642]
[1733275408771,1.5562,3694.2,3694.1,1.61705427]
[1733275408973,2.01795573,3694.2,3694.1,1.39246696]
[1733275409361,1.80642548,3694.2,3694.1,1.39246696]
[1733275409559,0.25069632,3694.2,3694.1,1.39246696]
[1733275409740,0.39599357,3695.1,3694.1,1.39246696]
[1733275409936,0.39599357,3695.1,3694.2,2.70694]
[1733275409937,0.25069632,3695.1,3694.2,2.70694]
[1733275410181,1.561,3695.2,3694.6,2.70664]
[1733275410344,1.561,3695.2,3694.8,2.70648]
[1733275410545,4.0,3694.9,3694.5,2.70667]
[1733275410775,4.34862,3695.6,3694.1,1.39246696]
[1733275410958,2.70615,3695.3,3694.1,1.39246696]
[1733275411139,1.6427,3695.4,3694.1,1.39246696]
[1733275411345,1.6427,3695.1,3694.1,1.39246696]
[1733275411575,1.6427,3695.1,3694.1,4.09945696]
[1733275411748,1.6427,3695.1,3694.2,0.4370142]
[1733275411980,2.70599,3695.5,3694.1,1.39246696]
[1733275412169,0.25059835,3695.4,3694.3,2.70683]
[1733275412377,0.25059835,3695.3,3694.2,2.70694]
[1733275412698,0.25059835,3695.5,3694.8,2.70647]
[1733275412905,0.25059835,3695.4,3694.8,2.70647]
[1733275413216,1.5254,3695.6,3694.2,0.41265443]
[1733275413217,0.25059835,3695.3,3694.5,2.70667]
[1733275413418,0.25059835,3695.2,3694.2,0.41265443]
[1733275413604,0.25059835,3695.5,3694.5,2.70672]
[1733275413774,0.25059835,3695.4,3694.2,2.70688]
[1733275414101,0.25059835,3695.3,3694.1,1.39246696]
[1733275414283,3.0,3696.0,3694.1,1.39246696]
[1733275414284,0.25059835,3695.2,3695.1,2.70627]
[1733275414486,0.25059835,3695.8,3695.4,2.70606]
[1733275414713,1.6281,3696.0,3695.4,2.70606]
[1733275414714,0.25059835,3695.7,3695.4,2.70606]
[1733275416027,0.25059835,3695.7,3694.3,1.6334]
[1733275416336,0.25059835,3695.7,3695.0,2.7063]
[1733275416833,0.25059835,3695.7,3694.3,1.94991137]
[1733275417172,1.6439,3695.6,3694.3,1.94991137]
[1733275417377,1.6439,3695.6,3694.3,1.6334]
[1733275417818,1.6439,3695.6,3694.7,2.70657]
[1733275418177,1.6439,3695.6,3694.8,2.7065]
[1733275418717,1.6439,3695.6,3694.3,1.6334]
[1733275419014,1.6439,3695.6,3694.9,2.70642]
[1733275419845,1.6439,3695.6,3694.4,0.58719937]
[1733275420033,1.6439,3695.6,3694.7,2.70657]
[1733275420849,1.6439,3695.6,3694.2,0.16630988]
[1733275421047,1.6439,3695.6,3694.3,0.15587768]
[1733275421251,1.6439,3695.6,3694.1,1.39246696]
[1733275421751,2.70609,3695.4,3694.1,1.39246696]
[1733275421910,1.617,3695.3,3694.1,4.09945696]
[1733275422247,1.617,3695.3,3694.2,2.70693]
[1733275422556,1.7787,3695.3,3694.2,2.70693]
[1733275422847,1.7787,3695.3,3694.4,2.70679]
[1733275423012,4.48484,3695.3,3694.1,4.09941696]
[1733275423212,2.70631,3695.1,3694.1,1.39246696]
[1733275423418,1.5846,3694.7,3694.1,1.39246696]
[1733275424307,4.2912,3694.7,3693.5,1.95742209]
[1733275424758,2.7068,3694.4,3693.5,1.95742209]
[1733275424963,0.14618664,3694.6,3693.5,4.66487209]
[1733275425260,1.73078518,3694.7,3693.6,0.46648721]
[1733275425550,1.5846,3694.7,3693.5,1.95742209]
[1733275425757,2.70639,3695.0,3693.5,1.90742209]
[1733275425758,2.70716,3693.9,3693.5,1.90742209]
[1733275425938,5.70805378,3694.9,3693.5,1.90742209]
[1733275425939,1.6468,3693.8,3693.5,1.90742209]
[1733275426107,2.70731,3693.7,3693.5,1.90742209]
[1733275426313,0.95838825,3693.6,3693.5,1.90742209]
[1733275426558,2.46688825,3693.6,3693.5,1.90742209]
[1733275426853,2.61306104,3693.6,3693.5,1.90742209]
[1733275427084,1.5085,3693.5,3692.8,2.01083188]
[1733275427286,2.70768,3693.2,3692.8,2.01083188]
[1733275427877,1.5085,3693.5,3692.8,2.01083188]
[1733275428083,2.70768,3693.2,3692.8,2.01083188]
[1733275428294,4.21599,3693.5,3692.8,2.01083188]
[1733275428489,0.25226025,3693.1,3692.8,2.21191507]
[1733275428782,0.25226025,3693.0,3692.8,2.21191507]
[1733275428991,0.25226025,3692.9,3692.8,2.21191507]
[1733275429190,0.25226025,3692.9,3692.8,2.01083188]
[1733275431278,0.25226025,3692.9,3692.8,3.54663188]
[1733275431455,0.25226025,3692.9,3692.8,2.01083188]
[1733275431777,0.2521602,3693.3,3692.8,2.01083188]
[1733275432001,4.56636086,3693.2,3692.8,2.01083188]
[1733275432142,0.25218086,3693.1,3692.8,2.01083188]
[1733275432340,0.25218086,3693.0,3692.8,2.01083188]
[1733275432573,0.25218086,3692.9,3692.8,2.01083188]
[1733275439781,2.70783,3693.0,3692.8,2.01083188]
[1733275439966,3.00382902,3693.0,3692.8,2.01083188]
[1733275440167,4.32029,3692.9,3692.8,2.01083188]
[1733275441179,1.6124,3692.9,3692.8,2.01083188]
[1733275441564,1.6124,3693.3,3692.8,2.01083188]
[1733275441968,2.70767,3693.2,3692.8,2.01083188]
[1733275442196,2.70789,3692.9,3692.8,2.01083188]
[1733275442377,4.23519,3692.9,3692.8,2.01083188]
[1733275443410,4.23519,3692.9,3691.8,0.1575772]
[1733275443411,2.7086,3692.0,3691.8,0.1575772]
[1733275443719,2.7086,3692.0,3690.2,2.22447106]
[1733275443720,4.31459,3691.0,3690.2,2.22447106]
[1733275444465,4.31459,3691.0,3690.9,0.16197826]
[1733275444912,1.6053,3691.0,3690.9,0.16197826]
[1733275445413,1.76583,3691.0,3690.9,0.16197826]
[1733275445806,1.5389,3691.6,3690.9,0.16197826]
[1733275446169,4.24776,3691.6,3690.9,0.16197826]
[1733275446694,1.5389,3691.6,3690.9,0.16197826]
[1733275447570,1.79022055,3691.6,3690.9,0.16197826]
[1733275447977,1.5389,3691.6,3690.9,0.16197826]
[1733275448180,0.44990606,3691.5,3690.9,0.16197826]
[1733275448503,3.41021894,3691.5,3690.9,0.16197826]
[1733275448806,0.44990606,3691.5,3690.9,0.16197826]
[1733275449110,1.5389,3691.6,3690.9,0.16197826]
[1733275450946,0.25138997,3691.8,3691.0,1.5198]
[1733275451097,1.5089,3692.0,3691.0,1.5198]
[1733275452348,0.25163634,3692.1,3691.0,1.5198]
[1733275452636,1.6191,3692.4,3691.0,1.5198]
[1733275452847,0.25163634,3692.3,3691.1,0.16817783]
[1733275452991,0.25163634,3692.2,3691.1,0.16817783]
[1733275453197,2.96012634,3692.1,3691.0,1.5198]
[1733275453500,0.25163634,3692.0,3691.1,0.02709031]
[1733275453694,0.25163634,3692.3,3691.1,0.02709031]
[1733275453932,0.25163634,3692.7,3691.7,2.70875]
[1733275454092,0.25163634,3692.6,3692.0,2.70855]
[1733275454299,0.25163634,3692.7,3691.8,1.5248]
[1733275454614,0.25163634,3692.6,3691.8,4.23349]
[1733275454921,2.70812,3692.6,3691.8,1.5248]
[1733275455129,0.133698,3692.8,3691.3,1.5248]
[1733275455130,0.25163634,3692.5,3691.3,1.5248]
[1733275455312,0.25163634,3692.4,3691.5,1.5829]
[1733275455642,0.25163634,3692.7,3692.0,2.70855]
[1733275455804,0.25163634,3692.6,3691.6,2.70885]
[1733275455996,0.25163634,3692.7,3691.7,0.429175]
[1733275456241,0.25163634,3692.6,3691.7,0.429175]
[1733275456450,0.25231277,3692.7,3692.0,2.70855]
[1733275456731,0.25231277,3692.6,3692.0,2.70855]
[1733275456932,0.25231277,3692.5,3692.0,2.70855]
[1733275457246,0.25231277,3692.7,3691.3,0.27091]
[1733275457532,0.133698,3692.8,3691.7,1.6593]
[1733275457533,0.25231277,3692.6,3691.7,1.6593]
[1733275457704,0.25231277,3692.5,3691.7,1.6593]
[1733275457908,0.133698,3692.8,3691.7,1.6593]
[1733275458106,1.5097,3692.4,3691.3,1.6593]
[1733275458336,2.70844,3692.2,3691.3,1.6593]
[1733275458640,0.25241554,3692.1,3691.2,2.70912]
[1733275458800,0.15097,3692.3,3691.2,2.70912]
[1733275458801,0.25241554,3692.0,3691.2,2.70912]
[1733275458991,0.14621998,3692.3,3691.2,2.70912]
[1733275458992,0.25241554,3691.9,3691.2,3.16112855]
[1733275459195,0.25241554,3691.8,3691.3,0.02708795]
[1733275459392,0.25241554,3692.2,3691.2,3.16112855]
[1733275459631,0.25241554,3692.1,3691.2,3.16112855]
[1733275459839,0.25241554,3692.0,3691.3,0.48101165]
[1733275459997,0.25241554,3691.9,3691.3,0.48101165]
[1733275460197,0.25248366,3691.8,3691.0,1.6219]
[1733275460400,0.25248366,3691.7,3691.0,4.33118]
[1733275460598,0.25248366,3692.1,3691.0,4.33118]
[1733275460851,0.25248366,3692.0,3691.1,0.44931583]
[1733275461041,0.25248366,3691.9,3691.1,0.44931583]
[1733275461341,0.25248366,3691.8,3691.1,0.44931583]
[1733275461558,0.25248366,3691.7,3691.1,0.44931583]
[1733275461698,0.25248366,3692.1,3691.2,0.4146868]
[1733275461903,0.25248366,3692.0,3691.2,0.4146868]
[1733275462139,0.25248366,3691.9,3691.2,0.4146868]
[1733275462321,0.25248366,3691.8,3691.2,0.4146868]
[1733275462529,0.25248366,3691.7,3691.2,0.4146868]
[1733275462741,0.14624733,3692.2,3691.0,1.64898797]
[1733275462742,0.25248366,3692.1,3691.3,0.02708796]
[1733275462968,0.25248366,3692.0,3691.3,0.02708796]
[1733275463127,1.5097,3692.4,3691.3,0.02708796]
[1733275463128,0.25248366,3691.9,3691.3,0.02708796]
[1733275463458,1.5097,3692.4,3691.6,2.70884]
[1733275463459,0.25263368,3692.3,3691.6,2.70884]
[1733275463658,1.86264533,3692.8,3691.6,2.70884]
[1733275463862,0.25262929,3692.7,3691.6,2.70884]
[1733275464065,0.25262929,3692.6,3691.7,0.270884]
[1733275464373,0.25262929,3692.5,3691.8,4.23849]
[1733275464519,0.25262929,3692.4,3691.9,0.02708276]
[1733275464735,0.133698,3692.8,3691.9,0.02708276]
[1733275464935,0.25263515,3692.7,3691.8,1.5298]
[1733275465232,0.25263515,3692.6,3691.8,1.5298]
[1733275465431,0.25263515,3692.5,3691.8,1.5298]
[1733275465673,0.25263515,3692.4,3691.9,0.18006276]
[1733275465877,0.25264437,3692.7,3692.1,2.70848]
[1733275466030,0.25264437,3692.6,3692.1,2.70848]
[1733275466232,0.133698,3692.8,3692.2,0.02708054]
[1733275466464,0.25264024,3692.7,3692.1,3.147606]
[1733275466646,0.25264024,3692.6,3692.1,3.147606]
[1733275466973,0.133698,3692.8,3692.1,3.147606]
[1733275467190,0.25264959,3692.5,3692.3,2.70832]
[1733275467496,0.133698,3692.8,3692.5,4.27878]
[1733275467647,0.133698,3692.8,3692.5,1.5706]
[1733275468189,0.133698,3692.8,3692.7,2.70804]
[1733275468420,0.133698,3692.8,3692.7,2.73511723]
[1733275468597,0.133698,3692.8,3692.7,3.13861172]
[1733275469748,0.133698,3692.8,3692.7,6.17884737]
[1733275470988,0.133698,3692.8,3692.7,7.74644737]
[1733275472054,8e-06,3692.8,3692.7,7.74644737]
[1733275472301,1.12770151,3695.1,3694.2,1.6468]
[1733275472501,1.12770151,3695.5,3694.5,2.70666]
[1733275472695,1.12770151,3695.8,3694.5,2.70666]
[1733275472908,0.14621687,3695.8,3694.3,3.04023565]
[1733275473203,0.14621687,3695.9,3694.3,3.04023565]
[1733275473404,0.44355469,3695.8,3694.6,2.70662]
[1733275473600,0.44355469,3695.8,3694.8,3.04023565]
[1733275473846,1.5837,3696.0,3695.0,4.22495]
[1733275474301,4.26497,3696.4,3695.1,2.73329853]
[1733275474497,1.5596,3696.4,3695.2,2.7062]
[1733275474725,1.5596,3696.4,3695.7,5.74606565]
[1733275474943,0.4231013,3696.3,3695.7,3.04023565]
[1733275475140,4.26458,3696.9,3695.7,3.04023565]
[1733275476459,2.70504,3696.8,3695.7,3.04023565]
[1733275476654,1.5596,3696.6,3694.5,4.22528]
[1733275476860,2.70467,3697.4,3694.5,4.55883565]
[1733275476861,1.5596,3696.4,3694.5,4.55883565]
[1733275477014,4.26497,3696.4,3694.6,2.70665]
[1733275477210,2.86137,3696.3,3694.8,2.7065]
[1733275477457,0.15596,3696.3,3694.5,4.55883565]
[1733275477613,0.15596,3696.3,3694.7,2.70656]
[1733275477614,2.70558,3696.1,3694.7,2.70656]
[1733275477816,0.286154,3696.0,3694.9,2.70639]
[1733275478052,0.15596,3696.3,3695.0,0.02705898]
[1733275478238,0.15596,3696.3,3695.1,1.5186]
[1733275478830,0.15596,3696.3,3695.1,4.22486]
[1733275479047,0.44209,3696.2,3695.1,4.22486]
[1733275480178,0.44209,3696.2,3695.1,1.5186]
[1733275480362,0.15596,3696.3,3695.1,4.22484]
[1733275480567,0.15596,3696.3,3695.5,2.70597]
[1733275480877,4.3544,3696.8,3695.5,2.70597]
[1733275481235,1.6493,3696.8,3695.6,2.7059]
[1733275482633,4.35434,3696.8,3695.6,2.7059]
[1733275482975,2.70558,3696.1,3695.1,1.5186]
[1733275483366,4.30985,3696.6,3694.7,2.70657]
[1733275483367,1.6046,3696.6,3694.7,1.5014]
[1733275483548,1.6046,3696.5,3694.7,1.5014]
[1733275483859,2.70548,3696.2,3694.8,5.77377466]
[1733275484060,1.6046,3696.5,3695.2,3.04023565]
[1733275484264,3.140574,3696.7,3694.8,0.75457648]
[1733275484265,0.435434,3696.7,3695.4,1.6353]
[1733275484447,2.70526,3696.5,3695.4,1.6353]
[1733275484643,4.23477,3696.9,3694.8,3.04023565]
[1733275484644,1.5298,3696.2,3694.9,1.6353]
[1733275485073,2.70581,3695.8,3694.9,1.6353]
[1733275485292,2.7057,3695.9,3694.4,1.5994]
[1733275485438,2.7057,3695.9,3693.0,0.35817316]
[1733275485439,2.70638,3695.0,3693.8,1.5994]
[1733275485636,2.70622,3695.2,3693.8,1.5994]
[1733275485937,2.70594,3695.6,3693.9,3.06730287]
[1733275486169,3.183007,3695.5,3694.2,2.70694]
[1733275486491,0.477017,3695.5,3694.3,3.06729907]
[1733275486638,0.477017,3695.5,3694.6,4.23224]
[1733275486982,1.6306,3695.7,3694.6,1.5256]
[1733275487164,1.5593,3696.4,3694.7,0.02706172]
[1733275487390,1.5593,3696.4,3695.2,2.7062]
[1733275487557,4.26463,3696.4,3695.2,2.7062]
[1733275487758,0.426463,3696.3,3695.2,2.7062]
[1733275487972,0.426463,3696.3,3695.2,2.70617]
[1733275488169,1.5593,3696.4,3694.7,0.02705677]
[1733275488397,1.5593,3696.4,3694.9,1.514]
[1733275488587,1.5593,3696.4,3695.1,2.70628]
[1733275488904,1.5038,3696.8,3695.3,1.514]
[1733275489097,0.15038,3696.7,3695.8,2.70574]
[1733275489313,1.5038,3696.8,3695.8,2.70574]
[1733275489601,1.5038,3696.8,3695.6,2.70589]
[1733275489812,1.5038,3696.8,3695.7,0.270589]
[1733275489977,1.5038,3696.8,3695.6,2.70589]
[1733275490307,1.5038,3696.8,3695.7,2.73287306]
[1733275490595,1.5038,3696.8,3695.7,2.70582]
[1733275490800,1.5038,3696.8,3695.5,2.70598]
[1733275491039,1.5038,3696.8,3695.3,1.514]
[1733275491334,1.5038,3696.8,3694.6,2.70665]
[1733275491335,2.70564,3696.0,3694.6,4.29518]
[1733275491625,0.15038,3696.7,3695.5,1.5886]
[1733275491794,1.6607,3696.9,3695.6,0.02705313]
[1733275492376,1.6607,3696.9,3695.9,2.70569]
[1733275492901,1.6607,3696.9,3695.7,2.70583]
[1733275493244,1.6607,3696.9,3695.8,2.70577]
[1733275493586,1.6607,3696.9,3695.6,2.7059]
[1733275493888,2.09726,3696.9,3696.0,2.70562]
[1733275494096,1.6607,3696.9,3695.7,0.45650254]
[1733275494296,1.6607,3696.9,3695.8,2.70575]
[1733275494818,2.70519,3696.6,3695.4,2.70605]
[1733275495022,2.70541,3696.3,3695.1,4.35622]
[1733275495180,1.5675,3696.5,3695.2,2.70619]
[1733275495481,2.0384293,3696.5,3695.2,3.141809]
[1733275495680,2.0384293,3696.5,3695.3,0.0270573]
[1733275495906,1.5675,3696.5,3695.2,2.70617]
[1733275496222,1.5675,3696.5,3695.3,2.70613]
[1733275496424,1.5675,3696.5,3695.4,2.70605]
[1733275497080,4.27276,3696.5,3695.2,2.7062]
[1733275497280,1.5675,3696.5,3695.4,2.70606]
[1733275497480,1.5675,3696.5,3695.5,2.70598]
[1733275498599,4.27281,3696.5,3695.2,2.70615]
[1733275498786,1.5675,3696.5,3695.4,2.70605]
[1733275499691,1.5675,3696.5,3695.3,2.7061]
[1733275499914,0.44188653,3696.4,3695.3,2.7061]
[1733275500114,0.44188653,3696.4,3695.3,0.02705551]
[1733275500292,0.14617533,3696.3,3695.1,1.65]
[1733275500502,0.14656126,3696.4,3695.1,1.65]
[1733275500809,3.0,3697.0,3694.7,0.02705551]
[1733275500810,1.6642,3696.1,3694.7,0.02705551]
[1733275501013,1.81076126,3696.1,3695.1,2.70628]
[1733275501225,1.6642,3696.1,3695.1,2.70628]
[1733275501426,2.101154,3696.1,3695.1,2.70628]
[1733275501633,1.6642,3696.1,3695.2,2.7062]
[1733275501846,1.6642,3696.1,3694.4,1.083063]
[1733275501986,1.5337,3695.4,3694.3,0.02706411]
[1733275502191,1.5337,3695.9,3694.2,2.591422]
[1733275502425,0.14657137,3695.8,3695.2,2.7062]
[1733275502587,1.5337,3695.9,3694.8,2.70643]
[1733275503086,1.5337,3695.5,3694.2,1.5083]
[1733275503288,1.70172714,3695.5,3694.2,4.36601]
[1733275503525,1.70172714,3695.5,3694.3,2.70686]
[1733275503726,2.70614,3695.3,3694.0,2.70703]
[1733275504046,0.14679469,3695.2,3694.1,2.707]
[1733275504204,0.28529347,3695.1,3693.6,2.6696]
[1733275504404,2.70651,3694.8,3693.6,4.29368]
[1733275504789,1.5337,3694.7,3693.2,1.083413]
[1733275505097,2.70719,3693.9,3692.6,4.29437]
[1733275505288,1.5337,3693.7,3692.3,3.791957]
[1733275505495,1.68707,3693.7,3692.6,2.70811]
[1733275505805,0.1465608,3693.6,3692.3,2.70827]
[1733275506251,4.39438,3693.7,3692.4,2.70825]
[1733275506552,0.38073935,3693.6,3692.4,3.137705]
[1733275506755,0.38073935,3693.5,3692.4,3.137705]